[Event "Belt and Road Women 2024"]
[Site "Yuecheng Shaoxing"]
[Date "2024.07.29"]
[Round "6.15"]
[White "Hu, Jiani"]
[Black "Ha, Yihan"]
[Result "0-1"]
[ECO "B18"]
[WhiteElo "2148"]
[BlackElo "2166"]
[Annotator "RC"]
[PlyCount "94"]
[EventDate "2024.08.01"]
[EventType "swiss"]
[EventCountry "CHN"]
[SourceTitle "playchess.com"]
[Source "ChessBase"]
[SourceQuality "1"]
[TimeControl "5400+30"]

1. e4 {[%emt 0:00:03]} c6 {[%emt 0:00:06]} 2. d4 {[%emt 0:00:06]} d5 {[%emt 0:00:05]} 3. Nc3 {[%emt 0:00:09]} dxe4 {[%emt 0:00:09]} 4. Nxe4 {[%emt 0:00:05]} Bf5 {[%emt 0:00:09]} 5. Ng3 {[%emt 0:00:06]} Bg6 {[%emt 0:00:08]} 6. Nf3 {[%emt 0:00:06]} Nd7 {[%emt 0:00:06]} 7. Bd3 {[%emt 0:00:08]} Bxd3 {[%emt 0:00:13]} 8. Qxd3 {[%emt 0:00:05]} e6 {[%emt 0:01:43]} 9. O-O {[%emt 0:00:18]} Ngf6 {[%emt 0:00:34]} 10. Re1 {[%emt 0:00:58]} Be7 {[%emt 0:01:48]} 11. b3 {[%emt 0:02:15]} O-O {[%emt 0:01:26]} 12. Bb2 {[%emt 0:00:50]} Re8 {[%emt 0:11:58]} 13. c4 {[%emt 0:08:25]} c5 {[%emt 0:04:45]} 14. Rad1 {[%emt 0:04:32]} cxd4 {[%emt 0:00:51]} 15. Nxd4 {[%emt 0:01:25]} Qb6 {[%emt 0:04:26]} 16. Nb5 {[%emt 0:06:34]} a6 {[%emt 0:04:36]} 17. Nc3 {[%emt 0:07:49]} Rad8 {[%emt 0:01:22]} 18. Qf3 {[%emt 0:05:18]} Nc5 {[%emt 0:08:49]} 19. h4 {[%emt 0:08:06]} h6 {[%emt 0:07:35]} 20. Nce2 {[%emt 0:10:55]} a5 {[%emt 0:07:52]} 21. Nf4 {[%emt 0:03:04]} Rxd1 {[%emt 0:02:26]} 22. Rxd1 {[%emt 0:00:13]} Rd8 {[%emt 0:02:54]} 23. Nfh5 {[%emt 0:20:33]} Rxd1+ {[%emt 0:05:30]} 24. Qxd1 {[%emt 0:00:07]} Qd8 {[%emt 0:02:56]} 25. Qxd8+ {[%emt 0:01:27]} Bxd8 {[%emt 0:00:05]} 26. Nxf6+ {[%emt 0:00:56]} Bxf6 {[%emt 0:00:46]} 27. Bxf6 {[%emt 0:00:09]} gxf6 {[%emt 0:00:05]} 28. Ne2 {[%emt 0:01:35]} f5 {[%emt 0:03:13]} 29. Nc1 {[%emt 0:04:08]} Kf8 {[%emt 0:03:11]} 30. f3 {[%emt 0:01:54]} f4 {[%emt 0:01:44]} 31. Kf2 {[%emt 0:03:38]} e5 {[%emt 0:01:28]} 32. a3 {[%emt 0:00:31]} Ke7 {[%emt 0:02:04]} 33. b4 {[%emt 0:01:20]} axb4 {[%emt 0:00:05]} 34. axb4 {[%emt 0:00:04]} Ne6 {[%emt 0:00:21]} 35. Nb3 {[%emt 0:01:17]} Kd6 {[%emt 0:01:08]} 36. Nd2 {[%emt 0:04:37]} f5 {[%emt 0:01:57]} 37. Nb3 {[%emt 0:01:09]} h5 {[%emt 0:03:06]} 38. c5+ {[%emt 0:00:58]} Kd5 {[%emt 0:01:59]} 39. Na5 {[%emt 0:00:17]} Nd8 {[%emt 0:00:08]} 40. Ke2 {[%emt 0:00:16]} Kd4 {[%emt 0:00:46]} 41. Kd2 {[%emt 0:00:36]} e4 {[%emt 0:01:57]} 42. Ke2 {[%emt 0:01:42]} e3 {[%emt 0:00:51]} 43. Ke1 {[%emt 0:00:16]} Nc6 {[%emt 0:04:43]} 44. Nxb7 {[%emt 0:00:48]} Kd3 {[%emt 0:01:07]} 45. b5 {[%emt 0:02:35]} Nd4 {[%emt 0:00:24]} 46. Nd6 {[%emt 0:00:34]} Nc2+ {[%emt 0:00:06]} 47. Kd1 {[%emt 0:00:17]} e2+ {[%emt 0:00:05]} 0-1

[Event "Belt and Road Women 2024"]
[Site "Yuecheng Shaoxing"]
[Date "2024.07.29"]
[Round "6.16"]
[White "Kairbekova, Amina"]
[Black "Wang, Chuqiao"]
[Result "1-0"]
[ECO "C77"]
[WhiteElo "2244"]
[BlackElo "2278"]
[Annotator "RC"]
[PlyCount "41"]
[EventDate "2024.08.01"]
[EventType "swiss"]
[EventCountry "CHN"]
[SourceTitle "playchess.com"]
[Source "ChessBase"]
[SourceQuality "1"]
[TimeControl "5400+30"]

1. e4 {[%emt 0:00:02]} e5 {[%emt 0:00:08]} 2. Nf3 {[%emt 0:00:03]} Nc6 {[%emt 0:00:06]} 3. Bb5 {[%emt 0:00:03]} a6 {[%emt 0:00:06]} 4. Ba4 {[%emt 0:00:04]} Nf6 {[%emt 0:00:09]} 5. d3 {[%emt 0:00:07]} b5 {[%emt 0:00:24]} 6. Bb3 {[%emt 0:00:04]} Be7 {[%emt 0:00:47]} 7. Nc3 {[%emt 0:00:07]} d6 {[%emt 0:00:34]} 8. a3 {[%emt 0:00:07]} O-O {[%emt 0:00:49]} 9. Nd5 {[%emt 0:00:08]} Nxd5 {[%emt 0:04:00]} 10. Bxd5 {[%emt 0:00:05]} Bd7 {[%emt 0:00:53]} 11. h4 {[%emt 0:00:15]} Rb8 {[%emt 0:09:36]} 12. Ng5 {[%emt 0:02:37]} g6 {[%emt 0:12:26]} 13. Be3 {[%emt 0:10:33]} Nd4 {[%emt 0:07:22]} 14. c3 {[%emt 0:09:16]} Nc6 {[%emt 0:04:56]} 15. Qf3 {[%emt 0:01:13]} Bf6 {[%emt 0:02:50]} 16. g4 {[%emt 0:11:58]} Qe7 {[%emt 0:23:34]} 17. Nxh7 {[%emt 0:03:05]} Kxh7 {[%emt 0:00:11]} 18. g5 {[%emt 0:00:04]} Bxg5 {[%emt 0:01:48]} 19. Bxg5 {[%emt 0:02:14]} f6 {[%emt 0:19:22]} 20. h5 {[%emt 0:00:05]} Kg7 {[%emt 0:01:50]} 21. Bh6+ {[%emt 0:00:06]} 1-0

[Event "Belt and Road Women 2024"]
[Site "Yuecheng Shaoxing"]
[Date "2024.07.31"]
[Round "7.1"]
[White "Badelka, Olga"]
[Black "Shuvalova, Polina"]
[Result "1/2-1/2"]
[ECO "E06"]
[WhiteElo "2389"]
[BlackElo "2467"]
[Annotator "TA"]
[PlyCount "98"]
[EventDate "2024.08.01"]
[EventType "swiss"]
[EventCountry "CHN"]
[SourceTitle "playchess.com"]
[Source "ChessBase"]
[SourceQuality "1"]
[TimeControl "5400+30"]

{[%evp 18,98,10,8,26,0,10,12,35,20,36,39,45,36,42,12,18,0,0,0,0,0,0,0,0,0,0,-54,-54,-68,-74,-73,-57,-84,-89,-114,-125,-133,-127,-182,-127,-135,-135,-169,-156,-204,-211,-214,-192,-219,-118,-252,-244,-262,-266,-258,-181,-178,-172,-177,-106,-119,-19,-149,-145,-132,-15,-14,-8,-8,0,0,0,0,0,0,0,0,0,0,0,0,0]} 1. Nf3 {[%emt 0:00:04]} d5 {[%emt 0:00:12]} 2. g3 {[%emt 0:00:06]} Nf6 {[%emt 0:00:07]} 3. Bg2 {[%emt 0:00:06]} e6 {[%emt 0:00:04]} 4. d4 {[%emt 0:00:12]} Be7 {[%emt 0:00:33]} 5. c4 {[%emt 0:00:07]} O-O {[%emt 0:00:13]} 6. Nc3 {[%emt 0:00:07]} dxc4 {[%emt 0:03:35]} 7. Ne5 {[%emt 0:00:22]} c5 {[%emt 0:00:29]} 8. dxc5 {[%emt 0:00:11]} Qxd1+ {[%emt 0:00:14]} 9. Nxd1 {[%emt 0:00:04]} Bxc5 {[%emt 0:00:11]} 10. Nxc4 {[%emt 0:00:06]} Nd5 {[%emt 0:08:16]} 11. Bd2 {[%emt 0:00:48]} Nc6 {[%emt 0:01:34]} 12. Rc1 {[%emt 0:00:10]} Be7 {[%emt 0:07:06]} 13. O-O {[%emt 0:11:49]} Bd7 {[%emt 0:11:39]} 14. Nc3 {[%emt 0:07:27]} Nxc3 {[%emt 0:09:53]} 15. Bxc3 {[%emt 0:00:16]} Rfd8 {[%emt 0:01:53]} 16. Rfd1 {[%emt 0:16:08]} Be8 {[%emt 0:00:46]} 17. Na5 {[%emt 0:00:46]} Rxd1+ {[%emt 0:08:38]} 18. Rxd1 {[%emt 0:00:28]} Nxa5 {[%emt 0:00:04]} 19. Bxa5 {[%emt 0:00:04]} Rc8 {[%emt 0:01:12] Inhibits Bc3.} 20. Bxb7 {[%emt 0:16:25]} Rb8 {[%emt 0:00:23]} 21. Bf3 {[%emt 0:05:38]} Rxb2 {[%emt 0:00:05]} 22. Rc1 {[%emt 0:00:06]} (22. Rd2 $11 Rxd2 23. Bxd2) 22... Rxa2 $15 {[%emt 0:04:33]} 23. Be1 {[%emt 0:14:27]} f6 {[%emt 0:03:58]} 24. Kg2 {[%emt 0:02:17]} Bd6 {[%emt 0:02:20]} 25. Rc8 {[%emt 0:01:07]} Kf7 {[%emt 0:00:04]} 26. Bh5+ {[%emt 0:02:58]} g6 {[%emt 0:00:12]} 27. Bf3 {[%emt 0:00:33]} Bb5 {[%emt 0:04:42]} 28. Rh8 {[%emt 0:11:45]} (28. Ra8 $17) 28... Kg7 {[%emt 0:05:45]} (28... h5 $19 29. Rd8 Bc5) 29. Rd8 $17 {[%emt 0:01:12]} Be7 {[%emt 0:03:17]} 30. Rb8 {[%emt 0:05:29]} Bxe2 {[%emt 0:00:50]} 31. Bc6 {[%emt 0:01:39]} (31. Bxe2 $17 Rxe2 32. Bb4 Bxb4 33. Rxb4) 31... Bc5 $19 {[%emt 0:05:30]} 32. Rb7+ {[%emt 0:00:40]} Kh6 {[%emt 0:00:07]} 33. Rd7 {[%emt 0:01:17]} Bc4 {[%emt 0:00:21]} (33... g5 $19 {...Ra1 would now be deadly.} 34. h3 Ra1) 34. Bf3 {[%emt 0:08:30]} (34. Bd2+ $17 {might work better.} g5 35. h4) 34... Bb5 {[%emt 0:06:33]} 35. Rf7 {[%emt 0:00:00]} f5 {[%emt 0:02:01]} 36. h4 {[%emt 0:00:00]} e5 {[%emt 0:01:55] [#] White must now prevent ...e4.} 37. g4 {[%emt 0:00:00]} fxg4 {[%emt 0:00:20]} 38. Bxg4 {[%emt 0:00:00]} Bd3 {[%emt 0:01:52]} (38... Be8 $19 39. Rc7 Be3) 39. Kg3 $17 {[%emt 0:00:00]} a5 {[%emt 0:02:30]} (39... a6 $17 40. Be6 Rc2) 40. Rd7 {[%emt 0:00:00] [#]} (40. Be6 $11 Rc2 41. Bxa5) 40... Bd4 $1 {[%emt 0:02:23]} 41. Be6 {[%emt 0:00:00]} Re2 {[%emt 0:01:08]} (41... Rc2 $17 {...Bf5 is the strong threat.} 42. Bg8 g5 43. Bxa5 (43. hxg5+ $2 Kxg5 44. f4+ exf4+ 45. Kf3 Bf5 $19) 43... gxh4+ (43... Bxf2+ 44. Kg4 $16) (43... Rxf2 44. hxg5+ Kxg5 45. Bd8+ Kf5 46. Rf7+ Kg6 47. Rxf2 $16) 44. Kxh4 Rxf2 (44... Bxf2+ $2 45. Kg4 $17)) 42. Bxa5 $11 {[%emt 0:00:00] The position is equal.} Bxf2+ {[%emt 0:00:41]} 43. Kf3 $1 {[%emt 0:00:00]} Bd4 {[%emt 0:00:42]} 44. Bd8 {[%emt 0:00:00] Threatening mate with Bg5+.} Re3+ {[%emt 0:00:48]} 45. Kf2 {[%emt 0:00:00] Bg5+ would kill now.} Re2+ {[%emt 0:00:37]} 46. Kg3 {[%emt 0:00:00]} Re3+ {[%emt 0:00:59]} 47. Kf2 {[%emt 0:00:00]} Re2+ {[%emt 0:00:50]} 48. Kg3 {[%emt 0:00:00] White wants to mate with Bg5+.} Re3+ {[%emt 0:00:43]} 49. Kf2 {[%emt 0:00:00] White threatens Bg5+ and mate.} Re2+ {[%emt 0:00:49] And White is the lucky defender.   Weighted Error Value: White=0.18 (very precise) /Black=0.19 (very precise) .  Mistake:       	White=5     	Black=5      Inaccurate:     	White=3     	---        OK:         	White=12    	Black=19     Best:        	White=5     	Black=5      Strong:       	White=1     	Black=1} 1/2-1/2

[Event "Belt and Road Women 2024"]
[Site "Yuecheng Shaoxing"]
[Date "2024.07.31"]
[Round "7.2"]
[White "Tan, Zhongyi"]
[Black "Guo, Qi"]
[Result "1-0"]
[ECO "C13"]
[WhiteElo "2540"]
[BlackElo "2362"]
[Annotator "TA"]
[PlyCount "115"]
[EventDate "2024.08.01"]
[EventType "swiss"]
[EventCountry "CHN"]
[SourceTitle "playchess.com"]
[Source "ChessBase"]
[SourceQuality "1"]
[TimeControl "5400+30"]

{[%evp 34,115,77,80,83,66,97,71,89,87,89,96,90,81,78,75,113,103,113,108,145,135,143,147,147,166,157,150,155,154,172,175,177,168,176,177,196,189,195,179,170,164,201,189,272,266,278,262,258,269,269,264,309,145,166,182,181,180,183,172,357,367,387,387,384,374,358,358,1434,1015,1475,1379,1449,1406,1497,1440,1416,491,9530,9467,4397,276,9474,9467]} 1. e4 {[%emt 0:00:04]} e6 {[%emt 0:00:14]} 2. d4 {[%emt 0:02:29]} d5 {[%emt 0:00:18]} 3. Nc3 {[%emt 0:03:42]} Nf6 {[%emt 0:00:08]} 4. Bg5 {[%emt 0:00:15]} dxe4 {[%emt 0:00:06]} 5. Nxe4 {[%emt 0:00:04]} Be7 {[%emt 0:00:06]} 6. Bxf6 {[%emt 0:00:26]} gxf6 {[%emt 0:00:08]} 7. Nc3 {[%emt 0:00:41] C13: French: Classical System: 4 Bg5 Be7, Alekhine-Chatard Attack.} c6 {[%emt 0:01:09]} 8. g3 {[%emt 0:02:24]} Nd7 {[%emt 0:08:52]} 9. Bg2 {[%emt 0:00:22]} Nb6 {[%emt 0:00:22]} 10. Nge2 {[%emt 0:00:44]} Nd5 {[%emt 0:01:04]} 11. O-O $146 {[%emt 0:03:51]} ({Predecessor:} 11. Na4 Qa5+ 12. c3 e5 13. b4 Qc7 14. O-O Bf5 15. Qb3 O-O 16. a3 Nb6 17. Nc5 {½-½ Varga,Z (2377)-Song,E (2362) Budapest Vezerkepzo GM-A 11 2022 (4)}) 11... Nxc3 {[%emt 0:02:28]} 12. bxc3 {[%emt 0:01:19]} O-O {[%emt 0:01:39]} 13. Nf4 {[%emt 0:00:56]} Kh8 {[%emt 0:09:09]} 14. Qh5 {[%emt 0:02:08]} Bd6 {[%emt 0:03:58]} 15. Nd3 {[%emt 0:00:08]} f5 {[%emt 0:05:01]} 16. Ne5 {[%emt 0:02:52]} Kg7 {[%emt 0:02:36]} 17. Rfe1 {[%emt 0:04:27]} f6 {[%emt 0:07:48]} 18. Nd3 {[%emt 0:00:05]} Qe7 {[%emt 0:04:54]} 19. Re3 {[%emt 0:02:57]} Qf7 {[%emt 0:04:43]} (19... e5 20. dxe5 fxe5 21. Nxe5 $16) 20. Qh4 {[%emt 0:00:42]} Qg6 {[%emt 0:03:21]} 21. Nf4 {[%emt 0:04:55]} Qg5 {[%emt 0:01:50]} 22. Nxe6+ {[%emt 0:00:17]} Bxe6 {[%emt 0:00:09]} 23. Rxe6 {[%emt 0:00:24]} Qxh4 {[%emt 0:00:24]} 24. gxh4 {[%emt 0:00:04]} Rad8 {[%emt 0:00:08]} 25. Rb1 {[%emt 0:02:59]} Rf7 {[%emt 0:02:54]} 26. Bh3 {[%emt 0:03:28]} f4 {[%emt 0:00:49]} 27. Kg2 {[%emt 0:01:53]} f3+ {[%emt 0:02:25]} 28. Kxf3 {[%emt 0:00:07]} Bxh2 {[%emt 0:00:04]} 29. Bf5 {[%emt 0:10:28]} c5 {[%emt 0:08:16]} 30. Rh1 {[%emt 0:04:29]} Bc7 {[%emt 0:00:55]} 31. Rg1+ {[%emt 0:00:07]} (31. dxc5 $6 Rd5 32. Bd3 Rxc5 $14) 31... Kh6 {[%emt 0:02:59]} 32. Ke4 {[%emt 0:02:00]} (32. dxc5 $6 Rd5 33. Bd3 Rxc5 $14) 32... Ba5 {[%emt 0:06:27]} 33. Rg3 {[%emt 0:06:15]} ({Much weaker is} 33. dxc5 $6 Bxc3 34. f4 Rd2 $14) 33... cxd4 {[%emt 0:02:57]} 34. cxd4 {[%emt 0:00:05]} Be1 {[%emt 0:00:04]} 35. Rf3 {[%emt 0:05:44]} Kg7 {[%emt 0:00:20]} 36. Kd3 {[%emt 0:04:49]} Bb4 {[%emt 0:00:54]} 37. Rg3+ {[%emt 0:00:05]} Kf8 {[%emt 0:01:08]} 38. c3 {[%emt 0:01:31]} Ba3 {[%emt 0:02:09]} (38... Be7 {was necessary.} 39. Re1 Bd6) 39. h5 $18 {[%emt 0:03:20]} Bc1 {[%emt 0:02:07]} 40. Rg4 {[%emt 0:02:19]} Rd5 {[%emt 0:01:52]} 41. Ke4 {[%emt 0:00:05]} Ra5 {[%emt 0:00:07]} 42. Rg1 {[%emt 0:01:48]} Bd2 {[%emt 0:01:30]} 43. Rd6 {[%emt 0:01:01]} (43. f4 $18 {and White stays clearly on top. And now Rd6 would win.} Rc7 44. Rxf6+ Ke7 45. Re6+ (45. Rh6 Rxc3 46. Rxh7+ Kf8 $18) 45... Kf8 46. c4) 43... Re7+ $16 {[%emt 0:05:43]} 44. Be6 {[%emt 0:04:02]} Rg5 {[%emt 0:00:18] [#]} 45. Rxg5 $1 {[%emt 0:08:13]} fxg5 {[%emt 0:00:05]} 46. c4 {[%emt 0:01:31]} Bf4 $2 {[%emt 0:03:26]} (46... g4 47. Kd3 (47. c5 Be1 $16) 47... Bb4) 47. Rd8+ $18 {[%emt 0:00:05]} Re8 {[%emt 0:00:29]} 48. Rxe8+ {[%emt 0:00:05]} Kxe8 {[%emt 0:00:03]} 49. h6 {[%emt 0:00:39]} Bc1 {[%emt 0:01:33]} 50. f3 {[%emt 0:00:16]} b6 $2 {[%emt 0:01:34]} (50... Ke7 51. Bg8 g4 52. fxg4 b6) 51. Bf5 $18 {[%emt 0:01:21]} g4 {[%emt 0:01:00]} 52. fxg4 {[%emt 0:00:04]} ({Weaker is} 52. Bxg4 Bxh6 53. Bf5 Bf8 54. Bxh7 Kd7 $18) 52... Bxh6 {[%emt 0:00:03]} 53. Bxh7 {[%emt 0:00:05]} Ke7 {[%emt 0:00:03]} 54. Kd5 {[%emt 0:00:24]} Be3 {[%emt 0:00:17]} 55. Bf5 {[%emt 0:00:45]} a5 {[%emt 0:01:02]} (55... Kd8 $142 56. Bc2 Kd7 57. Ba4+ Kd8) 56. a4 $18 {[%emt 0:01:28]} Kd8 {[%emt 0:00:19]} 57. c5 {[%emt 0:00:05]} bxc5 $2 {[%emt 0:00:30]} (57... Kc7 58. c6 Bg5) 58. dxc5 {[%emt 0:00:06]} 1-0

[Event "Belt and Road Women 2024"]
[Site "Yuecheng Shaoxing"]
[Date "2024.07.31"]
[Round "7.3"]
[White "Stefanova, Antoaneta"]
[Black "Mammadzada, Gunay"]
[Result "1/2-1/2"]
[ECO "A07"]
[WhiteElo "2417"]
[BlackElo "2444"]
[Annotator "RC"]
[PlyCount "80"]
[EventDate "2024.08.01"]
[EventType "swiss"]
[EventCountry "CHN"]
[SourceTitle "playchess.com"]
[Source "ChessBase"]
[SourceQuality "1"]
[TimeControl "5400+30"]

1. Nf3 {[%emt 0:00:59]} d5 {[%emt 0:00:07]} 2. g3 {[%emt 0:00:05]} Nf6 {[%emt 0:00:05]} 3. Bg2 {[%emt 0:00:11]} e6 {[%emt 0:00:30]} 4. O-O {[%emt 0:00:49]} Be7 {[%emt 0:00:04]} 5. d3 {[%emt 0:01:40]} O-O {[%emt 0:00:20]} 6. Bf4 {[%emt 0:00:59]} Nc6 {[%emt 0:05:01]} 7. d4 {[%emt 0:02:53]} Bd6 {[%emt 0:05:14]} 8. e3 {[%emt 0:00:09]} Be7 {[%emt 0:03:18]} 9. Ne1 {[%emt 0:15:47]} b6 {[%emt 0:12:01]} 10. Nd3 {[%emt 0:02:17]} Ba6 {[%emt 0:02:01]} 11. a3 {[%emt 0:07:08]} Ne4 {[%emt 0:11:01]} 12. f3 {[%emt 0:18:15]} Nd6 {[%emt 0:00:07]} 13. Nc3 {[%emt 0:03:32]} Nf5 {[%emt 0:09:49]} 14. g4 {[%emt 0:01:15]} Nh4 {[%emt 0:02:24]} 15. Bh3 {[%emt 0:01:30]} Na5 {[%emt 0:01:46]} 16. Bg3 {[%emt 0:12:31]} c5 {[%emt 0:01:08]} 17. f4 {[%emt 0:08:10]} Nc4 {[%emt 0:05:43]} 18. Qe1 {[%emt 0:04:37]} cxd4 {[%emt 0:02:12]} 19. exd4 {[%emt 0:00:06]} Rc8 {[%emt 0:00:21]} 20. Kh1 {[%emt 0:03:47]} Nd6 {[%emt 0:10:38]} 21. f5 {[%emt 0:02:59]} exf5 {[%emt 0:01:52]} 22. gxf5 {[%emt 0:01:10]} Bf6 {[%emt 0:00:42]} 23. Rf4 {[%emt 0:01:10]} g5 {[%emt 0:05:32]} 24. fxg6 {[%emt 0:00:25]} Nxg6 {[%emt 0:00:04]} 25. Bxc8 {[%emt 0:02:13]} Bxc8 {[%emt 0:00:03]} 26. Qf2 {[%emt 0:00:54]} Nxf4 {[%emt 0:01:23]} 27. Bxf4 {[%emt 0:00:23]} Kh8 {[%emt 0:01:26]} 28. Rg1 {[%emt 0:00:11]} Ne4 {[%emt 0:04:04]} 29. Nxe4 {[%emt 0:02:15]} dxe4 {[%emt 0:00:01]} 30. Be5 {[%emt 0:00:04]} Bxe5 {[%emt 0:00:43]} 31. Nxe5 {[%emt 0:00:02]} f6 {[%emt 0:01:50]} 32. Qg3 {[%emt 0:07:05]} Qe7 {[%emt 0:00:01]} 33. Nc6 {[%emt 0:00:51]} Qf7 {[%emt 0:00:13]} 34. d5 {[%emt 0:00:15]} Ba6 {[%emt 0:00:29]} 35. Nd4 {[%emt 0:00:17]} e3 {[%emt 0:01:20]} 36. Ne6 {[%emt 0:00:33]} Bc4 {[%emt 0:01:51]} 37. Nxf8 {[%emt 0:00:48]} Bxd5+ {[%emt 0:03:07]} 38. Rg2 {[%emt 0:00:01]} Qxf8 {[%emt 0:06:17]} 39. Qxe3 {[%emt 0:00:05]} Qa8 {[%emt 0:00:09]} 40. Qf2 {[%emt 0:00:27]} Bxg2+ {[%emt 0:00:05]} 1/2-1/2

[Event "Belt and Road Women 2024"]
[Site "Yuecheng Shaoxing"]
[Date "2024.07.31"]
[Round "7.4"]
[White "Wagner, Dinara"]
[Black "Beydullayeva, Govhar"]
[Result "1-0"]
[ECO "E05"]
[WhiteElo "2454"]
[BlackElo "2417"]
[Annotator "RC"]
[PlyCount "127"]
[EventDate "2024.08.01"]
[EventType "swiss"]
[EventCountry "CHN"]
[SourceTitle "playchess.com"]
[Source "ChessBase"]
[SourceQuality "1"]
[TimeControl "5400+30"]

1. d4 {[%emt 0:00:04]} Nf6 {[%emt 0:00:09]} 2. c4 {[%emt 0:00:05]} e6 {[%emt 0:00:06]} 3. Nf3 {[%emt 0:00:04]} d5 {[%emt 0:00:12]} 4. g3 {[%emt 0:00:25]} Be7 {[%emt 0:00:09]} 5. Bg2 {[%emt 0:00:15]} O-O {[%emt 0:00:21]} 6. O-O {[%emt 0:00:57]} dxc4 {[%emt 0:00:30]} 7. Qa4 {[%emt 0:00:45]} a6 {[%emt 0:00:48]} 8. Qxc4 {[%emt 0:00:04]} b5 {[%emt 0:00:07]} 9. Qc2 {[%emt 0:00:05]} Bb7 {[%emt 0:00:18]} 10. Bf4 {[%emt 0:00:21]} Nc6 {[%emt 0:01:34]} 11. Nc3 {[%emt 0:00:11]} Nb4 {[%emt 0:03:41]} 12. Qc1 {[%emt 0:00:36]} Nbd5 {[%emt 0:05:56]} 13. Nxd5 {[%emt 0:03:08]} Nxd5 {[%emt 0:00:23]} 14. Bg5 {[%emt 0:01:27]} f6 {[%emt 0:01:47]} 15. Bd2 {[%emt 0:00:12]} Rc8 {[%emt 0:05:04]} 16. a3 {[%emt 0:14:25]} c5 {[%emt 0:03:08]} 17. Qe1 {[%emt 0:00:17]} Qe8 {[%emt 0:09:56]} 18. Ba5 {[%emt 0:03:30]} cxd4 {[%emt 0:17:25]} 19. Nxd4 {[%emt 0:00:56]} Bc5 {[%emt 0:01:00]} 20. Rd1 {[%emt 0:05:30]} Rf7 {[%emt 0:03:29]} 21. e4 {[%emt 0:17:41]} Nb6 {[%emt 0:00:35]} 22. Nb3 {[%emt 0:02:40]} Nd7 {[%emt 0:03:20]} 23. Nxc5 {[%emt 0:08:26]} Nxc5 {[%emt 0:00:05]} 24. Qe3 {[%emt 0:00:39]} Rd7 {[%emt 0:04:38]} 25. Rxd7 {[%emt 0:02:47]} Qxd7 {[%emt 0:01:10]} 26. Rc1 {[%emt 0:22:41]} Na4 {[%emt 0:09:15]} 27. b3 {[%emt 0:00:28]} Nb2 {[%emt 0:00:02]} 28. Rxc8+ {[%emt 0:00:16]} Bxc8 {[%emt 0:02:58]} 29. Bf1 {[%emt 0:00:16]} Bb7 {[%emt 0:17:39]} 30. Be2 {[%emt 0:00:30]} e5 {[%emt 0:06:46]} 31. Bc3 {[%emt 0:04:14]} Nd1 {[%emt 0:00:25]} 32. Qd2 {[%emt 0:00:09]} Qxd2 {[%emt 0:00:32]} 33. Bxd2 {[%emt 0:00:03]} Nxf2 {[%emt 0:00:46]} 34. Kxf2 {[%emt 0:00:03]} Bxe4 {[%emt 0:00:03]} 35. Ke3 {[%emt 0:09:50]} Bd5 {[%emt 0:00:24]} 36. Bd1 {[%emt 0:00:03]} Kf7 {[%emt 0:00:10]} 37. Kd3 {[%emt 0:00:46]} Ke6 {[%emt 0:01:50]} 38. Kc3 {[%emt 0:00:03]} Kf5 {[%emt 0:00:17]} 39. Kb4 {[%emt 0:01:08]} Ke4 {[%emt 0:00:32]} 40. Ka5 {[%emt 0:01:23]} Kd3 {[%emt 0:00:33]} 41. Bb4 {[%emt 0:02:41]} e4 {[%emt 0:00:55]} 42. Kxa6 {[%emt 0:00:04]} e3 {[%emt 0:00:03]} 43. Kxb5 {[%emt 0:01:09]} e2 {[%emt 0:00:05]} 44. Bxe2+ {[%emt 0:00:02]} Kxe2 {[%emt 0:00:03]} 45. Bf8 {[%emt 0:00:02]} Bxb3 {[%emt 0:01:12]} 46. Bxg7 {[%emt 0:00:04]} f5 {[%emt 0:00:19]} 47. a4 {[%emt 0:00:03]} Kf3 {[%emt 0:00:17]} 48. a5 {[%emt 0:00:15]} Kg2 {[%emt 0:01:02]} 49. Be5 {[%emt 0:00:18]} Kxh2 {[%emt 0:00:57]} 50. g4+ {[%emt 0:02:25]} Kh3 {[%emt 0:00:02]} 51. gxf5 {[%emt 0:00:02]} Kg4 {[%emt 0:00:03]} 52. f6 {[%emt 0:00:04]} Kf5 {[%emt 0:00:08]} 53. a6 {[%emt 0:01:08]} Ke6 {[%emt 0:00:18]} 54. Kc5 {[%emt 0:01:12]} Bd1 {[%emt 0:00:07]} 55. Kd4 {[%emt 0:00:30]} Bf3 {[%emt 0:01:02]} 56. Ke3 {[%emt 0:00:09]} Ba8 {[%emt 0:00:30]} 57. Kf4 {[%emt 0:00:04]} Bc6 {[%emt 0:01:12]} 58. Kg5 {[%emt 0:00:04]} Kf7 {[%emt 0:00:25]} 59. Bg3 {[%emt 0:00:28]} Bd7 {[%emt 0:02:45]} 60. Bh4 {[%emt 0:00:17]} Bb5 {[%emt 0:00:10]} 61. a7 {[%emt 0:00:04]} Bc6 {[%emt 0:00:02]} 62. Kf5 {[%emt 0:00:15]} h5 {[%emt 0:01:14]} 63. Ke5 {[%emt 0:00:04]} Ba8 {[%emt 0:00:31]} 64. Kd6 {[%emt 0:00:04]} 1-0